bitfinex/quotes_SOLUSD_20240612
["timestamp","ask_amount","ask_price","bid_price","bid_amount"]
[1718157247187,2.5273,146.41,146.37,0.68]
[1718157247369,2.5273,146.4,146.37,0.68]
[1718157247573,30.5887,146.41,146.37,0.51]
[1718157247876,2.5279,146.37,146.33,2.5285]
[1718157248059,2.5277,146.38,146.34,2.5283]
[1718157248261,2.5277,146.38,146.33,9.1031]
[1718157248468,5.0547,146.4,146.32,15.7597]
[1718157248469,10.1103,146.39,146.32,15.7597]
[1718157248785,2.5282,146.35,146.32,15.7597]
[1718157248985,2.5281,146.36,146.32,18.2883]
[1718157249786,2.5281,146.36,146.33,0.17]
[1718157250081,2.5281,146.36,146.33,0.68]
[1718157250593,2.5286,146.33,146.29,8.9015]
[1718157250792,5.0564,146.35,146.29,6.3724]
[1718157250971,20.48,146.37,146.29,6.3724]
[1718157251168,10.1143,146.33,146.27,16.61]
[1718157251377,15.1715,146.33,146.27,16.61]
[1718157251566,15.1715,146.33,146.26,2.5296]
[1718157251755,2.5289,146.31,146.26,2.5296]
[1718157251960,7.5862,146.32,146.24,8.6052]
[1718157252190,2.5293,146.29,146.24,8.6052]
[1718157252766,2.5293,146.29,146.25,2.5298]
[1718157252983,2.5293,146.29,146.26,0.34]
[1718157253188,25.5371,146.33,146.27,0.34]
[1718157253393,2.5289,146.31,146.28,0.17]
[1718157253564,2.5289,146.31,146.28,0.34]
[1718157254224,2.529,146.3,146.28,0.34]
[1718157254692,2.5292,146.29,146.28,0.17]
[1718157254998,2.5292,146.29,146.27,0.51]
[1718157255397,2.5291,146.3,146.27,0.51]
[1718157256191,2.5292,146.29,146.27,0.51]
[1718157257005,6.3248,146.35,146.27,0.51]
[1718157257190,2.5287,146.32,146.29,0.17]
[1718157257385,2.5289,146.31,146.29,0.51]
[1718157257687,2.5287,146.32,146.29,0.51]
[1718157258601,26.8048,146.35,146.29,0.51]
[1718157258908,24.1311,146.41,146.3,5.0579]
[1718157259200,25.5349,146.39,146.31,0.34]
[1718157259393,25.5349,146.39,146.32,0.17]
[1718157259394,2.5283,146.34,146.32,0.17]
[1718157259567,2.5283,146.34,146.32,0.34]
[1718157259768,2.5282,146.35,146.33,0.34]
[1718157260103,2.5283,146.34,146.33,0.34]
[1718157260286,2.5283,146.34,146.33,0.51]
[1718157260504,2.5283,146.34,146.33,0.68]
[1718157261317,2.5283,146.34,146.26,2.5296]
[1718157261318,12.6427,146.33,146.26,2.5296]
[1718157261501,2.5288,146.31,146.26,2.5296]
[1718157261715,2.5288,146.32,146.28,2.5293]
[1718157261909,2.5287,146.32,146.28,2.5293]
[1718157262124,2.5285,146.33,146.29,2.5291]
[1718157262417,2.5284,146.34,146.3,0.17]
[1718157262718,2.5285,146.33,146.3,0.68]
[1718157264405,2.5287,146.32,146.3,0.68]
[1718157265004,2.5285,146.33,146.3,0.68]
[1718157266621,2.5287,146.32,146.3,0.68]
[1718157266831,2.5288,146.31,146.3,0.34]
[1718157267919,2.5287,146.32,146.3,0.34]
[1718157268126,2.5287,146.32,146.29,0.51]
[1718157268297,2.5287,146.32,146.29,0.68]
[1718157270007,2.5286,146.33,146.29,3.2091]
[1718157271231,5.0569,146.34,146.29,0.68]
[1718157271421,2.5289,146.31,146.29,0.68]
[1718157273236,2.529,146.3,146.29,0.68]
[1718157273399,7.5867,146.31,146.23,15.8321]
[1718157273605,2.5294,146.28,146.24,2.53]
[1718157273823,5.0588,146.28,146.23,22.085]
[1718157274127,7.5879,146.29,146.23,2.5302]
[1718157274420,7.5879,146.29,146.2,5.0614]
[1718157274729,2.5296,146.27,146.23,2.5302]
[1718157275305,2.5298,146.26,146.22,2.5303]
[1718157275626,2.5298,146.26,146.22,8.7832]
[1718157275803,2.5298,146.26,146.22,2.5303]
[1718157276003,33.1264,146.29,146.2,5.0614]
[1718157276421,2.5297,146.27,146.22,2.5303]
[1718157276631,2.49551,146.26,146.23,0.34]
[1718157277203,2.49551,146.26,146.24,0.51]
[1718157277404,2.49551,146.26,146.25,0.34]
[1718157277648,2.49551,146.26,146.25,0.68]
[1718157278018,2.49551,146.26,146.25,0.17]
[1718157278224,2.49551,146.26,146.23,0.17]
[1718157278539,5.0588,146.28,146.23,0.68]
[1718157279128,2.5298,146.26,146.23,0.68]
[1718157280332,2.5299,146.25,146.23,0.68]
[1718157280538,2.53,146.24,146.23,0.68]
[1718157280742,2.53,146.24,146.23,0.51]
[1718157280911,20.48,146.26,146.19,21.3109]
[1718157281115,2.5305,146.22,146.19,15.0785]
[1718157281335,2.5305,146.22,146.2,6.2324]
[1718157281724,2.53,146.25,146.21,2.5306]
[1718157282041,2.5299,146.25,146.2,2.5306]
[1718157282236,2.5303,146.23,146.21,6.7424]
[1718157282811,2.5301,146.24,146.21,6.7424]
[1718157283010,2.5301,146.24,146.22,0.17]
[1718157283830,28.0677,146.29,146.22,0.17]
[1718157284040,20.48,146.29,146.22,0.17]
[1718157284238,2.5298,146.26,146.22,2.7003]
[1718157284437,2.5299,146.25,146.23,0.51]
[1718157284618,2.5299,146.25,146.24,0.34]
[1718157284820,2.5297,146.26,146.25,0.17]
[1718157285019,2.5297,146.26,146.25,0.34]
[1718157285523,2.5297,146.26,146.25,0.68]
[1718157285931,2.5297,146.26,146.25,0.34]
[1718157286133,2.5297,146.26,146.25,0.17]
[1718157286931,5.0592,146.27,146.2,2.5307]
[1718157287253,5.0592,146.27,146.21,0.68]
[1718157287444,2.5301,146.24,146.21,0.68]
[1718157287640,2.5298,146.26,146.22,2.5302]
[1718157287828,2.5298,146.26,146.23,0.51]
[1718157288024,2.5298,146.26,146.24,0.17]
[1718157290718,2.5296,146.27,146.24,0.17]
[1718157290923,2.5292,146.29,146.26,0.17]
[1718157291227,2.5291,146.3,146.26,3.2097]
[1718157291424,2.5289,146.31,146.28,0.17]
[1718157291624,2.5289,146.31,146.28,3.0393]
[1718157291850,2.5288,146.31,146.29,0.17]
[1718157292032,2.5287,146.32,146.3,0.17]
[1718157292233,2.5287,146.32,146.3,0.51]
[1718157292438,2.5288,146.31,146.3,0.51]
[1718157292644,2.5293,146.29,146.26,0.17]
[1718157292820,2.5295,146.28,146.26,0.68]
[1718157293028,2.5295,146.27,146.26,0.68]
[1718157293754,2.5294,146.28,146.26,0.68]
[1718157294343,2.5295,146.27,146.26,0.68]
[1718157295346,2.5295,146.27,146.26,0.34]
[1718157295663,2.5295,146.27,146.19,12.6541]
[1718157295664,7.5901,146.25,146.16,5.0628]
[1718157295837,2.5302,146.24,146.19,2.5308]
[1718157296155,15.1781,146.27,146.21,2.5305]
[1718157296337,2.5299,146.25,146.21,2.5305]
[1718157296967,2.5299,146.25,146.22,0.34]
[1718157298454,2.5299,146.25,146.23,0.51]
[1718157300331,2.53,146.24,146.23,0.51]
[1718157300531,2.53,146.24,146.23,0.17]
[1718157300943,49.09,146.25,146.19,2.5309]
[1718157301145,2.5303,146.23,146.19,2.5309]
[1718157302047,2.5303,146.23,146.2,0.51]
[1718157303057,2.5304,146.22,146.2,0.51]
[1718157303238,2.5303,146.23,146.2,0.51]
[1718157303435,2.5301,146.24,146.2,3.0407]
[1718157303633,2.5299,146.26,146.23,0.17]
[1718157303860,26.0796,146.27,146.23,3.0401]
[1718157304041,26.0796,146.27,146.24,0.17]
[1718157304249,2.5297,146.26,146.25,0.17]
[1718157304553,2.5297,146.26,146.25,0.51]
[1718157304958,2.5302,146.23,146.19,2.5308]
[1718157305267,2.5301,146.24,146.21,0.17]
[1718157305950,2.5302,146.23,146.21,0.17]
[1718157307547,6.2717,146.26,146.21,0.17]
[1718157307747,23.55,146.27,146.21,0.17]
[1718157307942,23.55,146.27,146.21,2.7005]
[1718157307943,2.5299,146.25,146.21,2.7005]
[1718157308145,2.5299,146.25,146.23,0.17]
[1718157308346,2.53,146.24,146.23,0.17]
[1718157308565,2.53,146.24,146.22,0.51]
[1718157310264,2.5302,146.23,146.22,0.34]
[1718157310469,2.5302,146.23,146.22,0.17]
[1718157311941,10.1203,146.25,146.16,15.8908]
[1718157311942,26.8789,146.24,146.16,15.8908]
[1718157312144,20.48,146.22,146.12,16.3303]
[1718157312373,5.0619,146.19,146.12,18.8623]
[1718157312569,2.5314,146.16,146.12,18.8623]
[1718157312743,35.6639,146.21,146.12,16.3303]
[1718157312951,2.531,146.19,146.15,2.5316]
[1718157313550,2.531,146.19,146.16,0.68]
[1718157313943,2.5311,146.18,146.16,0.68]
[1718157315049,2.5308,146.2,146.16,0.68]
[1718157315251,2.5308,146.2,146.16,3.2114]
[1718157315468,2.5306,146.21,146.18,0.17]
[1718157315663,2.5306,146.21,146.18,0.68]
[1718157315849,2.5306,146.21,146.18,0.34]
[1718157316045,2.5307,146.2,146.19,0.51]
[1718157316553,2.5307,146.2,146.19,0.68]
[1718157316869,20.48,146.21,146.09,26.54065]
[1718157317049,2.5315,146.16,146.12,2.5321]
[1718157317255,2.5313,146.17,146.13,2.5319]
[1718157317455,2.5313,146.17,146.09,34.13845]
[1718157317456,2.5311,146.18,146.14,2.5317]
[1718157317774,2.5314,146.16,146.12,2.532]
[1718157317986,2.5313,146.17,146.12,2.532]
[1718157318355,2.5313,146.17,146.13,0.68]
[1718157318767,2.5313,146.17,146.13,3.2119]
[1718157319151,2.5315,146.16,146.13,0.68]
[1718157320377,39.1514,146.2,146.15,2.5316]
[1718157320551,23.55,146.2,146.17,0.17]
[1718157320755,2.5305,146.22,146.19,0.17]
[1718157321078,32.4739,146.23,146.19,0.68]
[1718157321277,2.5304,146.22,146.19,0.68]
[1718157321453,50.4236,146.23,146.19,0.68]
[1718157321809,2.5307,146.2,146.19,0.17]
[1718157322079,2.5311,146.18,146.14,2.5317]
[1718157322268,2.5311,146.18,146.15,0.68]
[1718157322457,2.531,146.19,146.15,3.2116]
[1718157323466,2.5308,146.2,146.16,2.5314]
[1718157323673,2.5308,146.2,146.18,0.17]
[1718157323989,2.5309,146.19,146.18,0.17]
[1718157327387,2.5306,146.21,146.18,0.17]
[1718157327600,2.5302,146.23,146.2,0.17]
[1718157327781,9.96356636,146.24,146.2,0.68]
[1718157327978,4.26716875,146.27,146.24,0.17]
[1718157327979,14.23073511,146.27,146.24,0.17]
[1718157328176,2.5297,146.26,146.24,0.34]
[1718157328374,2.5297,146.26,146.25,0.17]
[1718157328697,2.5296,146.27,146.26,0.17]
[1718157328875,2.5297,146.26,146.25,0.34]
[1718157329077,2.5297,146.26,146.25,0.51]
[1718157329485,2.5297,146.26,146.25,0.68]
[1718157329998,2.5297,146.26,146.25,0.51]
[1718157332772,20.48,146.27,146.16,15.887]
[1718157332974,2.5305,146.22,146.18,2.531]
[1718157333173,2.5303,146.23,146.19,2.5309]
[1718157333376,2.5305,146.22,146.18,2.531]
[1718157334108,2.5299,146.25,146.22,0.17]
[1718157334278,26.0798,146.26,146.22,3.2104]
[1718157334476,26.0798,146.26,146.22,2.8704]
[1718157334682,2.5299,146.25,146.24,0.17]
[1718157334879,2.5299,146.25,146.24,0.34]
[1718157335081,2.5299,146.25,146.24,0.68]
[1718157335291,2.5298,146.26,146.24,0.68]
[1718157335621,9.96356636,146.28,146.26,0.17]
[1718157335778,25.5382,146.3,146.26,0.34]
[1718157335974,2.5295,146.28,146.27,0.51]
[1718157336601,2.5295,146.28,146.27,0.68]
[1718157337685,2.5295,146.28,146.27,0.17]
[1718157338098,7.5882,146.28,146.27,0.17]
[1718157338409,2.5295,146.28,146.27,0.17]
[1718157338699,2.5295,146.28,146.27,0.51]
[1718157340009,9.97198164,146.31,146.27,0.68]
[1718157340190,9.97198164,146.34,146.28,0.34]
[1718157340388,2.5284,146.34,146.3,2.6989]
[1718157340589,2.5284,146.34,146.32,0.17]
[1718157341120,2.5285,146.33,146.32,0.17]
[1718157342286,2.5287,146.32,146.31,0.68]
[1718157343591,2.5286,146.33,146.31,0.68]
[1718157343792,2.5286,146.33,146.32,0.17]
[1718157344417,5.0575,146.32,146.24,15.4956]
[1718157344716,2.5296,146.27,146.24,15.4956]
[1718157346611,23.55,146.31,146.26,2.5297]
[1718157346798,23.55,146.31,146.24,15.4956]
[1718157346799,2.5293,146.29,146.27,0.68]
[1718157347514,2.5293,146.28,146.27,0.68]
[1718157348406,2.5297,146.26,146.21,2.5305]
[1718157348809,2.5297,146.26,146.22,2.5304]
[1718157349010,2.5299,146.25,146.22,2.5304]
[1718157349309,2.5298,146.26,146.22,2.5304]
[1718157349509,2.5299,146.25,146.23,0.68]
[1718157349688,2.53,146.24,146.23,0.68]
[1718157350193,2.53,146.25,146.23,0.68]
[1718157350408,51.6183,146.28,146.23,0.68]
[1718157350713,2.5299,146.25,146.23,0.68]
[1718157351019,2.5298,146.26,146.23,0.68]
[1718157352514,2.5299,146.25,146.23,0.68]
[1718157354394,2.5298,146.26,146.23,0.68]
[1718157354596,2.5296,146.27,146.23,3.2101]
[1718157355313,2.5297,146.26,146.23,0.68]
[1718157356304,2.5297,146.26,146.23,3.2102]
[1718157357096,2.5293,146.29,146.25,2.6999]
[1718157357293,2.5293,146.29,146.27,0.17]
[1718157357500,2.5293,146.29,146.27,0.34]
[1718157357713,2.5293,146.29,146.27,0.68]
[1718157357914,2.5293,146.28,146.27,0.68]
[1718157361139,2.5303,146.23,146.2,16.2522]
[1718157361428,30.5988,146.27,146.21,2.5305]
[1718157361429,2.53,146.25,146.21,2.5305]
[1718157361802,2.53,146.25,146.2,16.2522]
[1718157361803,2.53,146.25,146.22,2.5304]
[1718157362519,2.5298,146.26,146.24,0.17]
[1718157363300,2.5299,146.25,146.24,0.17]
[1718157363521,2.5298,146.26,146.24,0.17]
[1718157364327,2.5292,146.29,146.25,2.5298]
[1718157364531,2.5291,146.3,146.26,3.2097]
[1718157364705,2.5292,146.29,146.26,0.68]
[1718157365526,2.5293,146.28,146.26,0.68]
[1718157365734,2.5293,146.29,146.26,0.68]
[1718157366627,9.99509926,146.33,146.26,0.68]
[1718157366815,2.5287,146.32,146.29,0.17]
[1718157367015,2.5287,146.32,146.29,0.68]
[1718157367343,9.99509926,146.34,146.33,0.17]
[1718157367638,2.5283,146.34,146.33,0.68]
[1718157367809,7.585,146.34,146.33,0.68]
[1718157368205,7.585,146.34,146.33,0.51]
[1718157368502,5.0574,146.32,146.27,0.17]
[1718157368707,2.5292,146.29,146.28,0.17]
[1718157368915,2.5292,146.29,146.27,0.34]
[1718157369145,2.5288,146.32,146.27,2.8694]
[1718157369364,258.5,146.38,146.27,0.34]
[1718157369365,9.99509926,146.36,146.27,0.34]
[1718157369545,9.99509926,146.36,146.3,0.17]
[1718157369837,2.5284,146.34,146.3,2.869]
[1718157370040,2.5284,146.34,146.32,0.17]
[1718157370333,2.5284,146.34,146.32,0.34]
[1718157370538,44.8713,146.37,146.34,0.17]
[1718157370539,2.5282,146.35,146.34,0.17]
[1718157370751,296.56342829,146.38,146.34,0.17]
[1718157370752,2.528,146.36,146.34,0.34]
[1718157370907,268.50042829,146.38,146.34,0.34]
[1718157371104,10.00042829,146.39,146.36,0.17]
[1718157371415,59.52124397,146.43,146.36,6.6433]
[1718157371416,10.00042829,146.41,146.36,6.6433]
[1718157371612,10.00042829,146.41,146.38,2.6975]
[1718157371825,17.19787226,146.43,146.4,0.17]
[1718157373146,2.5271,146.41,146.4,0.17]
[1718157374156,30.5894,146.4,146.32,15.3716]
[1718157374366,41.2438,146.38,146.29,2.5291]
[1718157374656,5.0558,146.37,146.29,2.5291]
[1718157374846,5.0558,146.37,146.28,23.046]
[1718157374847,23.55,146.38,146.28,23.046]
[1718157375036,12.52782829,146.4,146.35,2.528]
[1718157375243,10.00042829,146.4,146.32,10.1143]
[1718157375440,10.00042829,146.43,146.36,6.0821]
[1718157375651,292.05042829,146.44,146.35,22.0488]
[1718157375861,2.5272,146.41,146.35,22.0488]
[1718157376154,2.527,146.42,146.36,0.51]
[1718157376351,2.527,146.42,146.38,2.5275]
[1718157376565,2.527,146.42,146.39,0.68]
[1718157376770,2.5271,146.41,146.39,0.68]
[1718157379250,307.5834,146.44,146.39,3.2074]
[1718157379251,2.5269,146.43,146.39,3.2074]
[1718157379636,261.0266,146.44,146.41,0.17]
[1718157379844,258.5,146.44,146.39,0.68]
[1718157380163,2.527,146.42,146.39,0.68]
[1718157380341,2.5272,146.41,146.39,0.68]
[1718157383262,2.5269,146.43,146.39,3.2073]
[1718157384140,2.5269,146.43,146.39,0.68]
[1718157384870,2.5269,146.42,146.39,0.68]
[1718157386252,2.5272,146.41,146.39,0.68]
[1718157388365,15.05232829,146.48,146.41,0.17]
[1718157388576,5.0526,146.46,146.41,0.68]
[1718157388749,2.5269,146.43,146.41,0.51]
[1718157389066,2.5267,146.44,146.42,0.17]
[1718157389376,2.5267,146.44,146.43,0.17]
[1718157389671,2.5265,146.45,146.43,0.51]
[1718157389838,2.5265,146.45,146.44,0.17]
[1718157390269,2.5265,146.45,146.36,21.3283]
[1718157390270,2.527,146.42,146.37,0.17]
[1718157390450,2.527,146.42,146.39,0.17]
[1718157391265,2.5268,146.43,146.39,2.6974]
[1718157391568,2.5268,146.43,146.41,0.17]
[1718157392265,2.5267,146.44,146.41,0.17]
[1718157392865,10.1058,146.46,146.41,0.17]
[1718157392866,2.5269,146.42,146.41,0.17]
[1718157393345,2.5268,146.43,146.41,0.17]
[1718157393847,2.5265,146.45,146.41,2.6971]
[1718157394155,2.526,146.48,146.45,0.17]
[1718157394352,2.5258,146.49,146.45,3.0363]
[1718157394567,2.5256,146.5,146.47,0.17]
[1718157394768,2.5256,146.5,146.47,0.51]
[1718157394970,2.5256,146.5,146.48,0.17]
[1718157395142,23.55,146.53,146.49,0.17]
[1718157395346,5.0498,146.54,146.49,0.51]
[1718157395548,5.0498,146.54,146.5,0.17]
[1718157395764,5.0498,146.54,146.51,0.17]
[1718157395950,5.0498,146.54,146.51,0.34]
[1718157396266,258.5,146.55,146.51,0.34]
[1718157396470,2.5249,146.54,146.53,0.17]
[1718157396782,2.5249,146.54,146.53,0.34]
[1718157396953,2.5249,146.54,146.53,0.51]
[1718157397153,2.5249,146.54,146.53,0.68]
[1718157397980,2.5249,146.54,146.53,0.17]
[1718157398156,2.5255,146.51,146.44,0.17]
[1718157398355,2.5255,146.51,146.44,0.68]
[1718157398657,2.5253,146.52,146.48,0.17]
[1718157398858,2.5253,146.52,146.48,0.51]
[1718157399161,2.5253,146.52,146.49,0.17]
[1718157399392,2.525,146.54,146.5,0.17]
[1718157399572,36.1733,146.56,146.5,0.51]
[1718157399761,2.5249,146.54,146.5,0.51]
[1718157399959,2.5249,146.54,146.51,0.17]
[1718157400168,2.5249,146.54,146.52,0.17]
[1718157400370,2.5249,146.54,146.52,0.34]
[1718157400582,27.6718,146.58,146.54,0.17]
[1718157400788,2.5245,146.57,146.54,0.34]
[1718157401087,20.5,146.59,146.54,0.34]
[1718157401088,2.5246,146.56,146.55,0.51]
[1718157401459,2.5246,146.56,146.55,0.68]
[1718157402362,2.5252,146.53,146.49,2.6957]
[1718157402557,44.05,146.57,146.51,0.17]
[1718157402558,28.5988,146.57,146.51,0.17]
[1718157402761,2.5248,146.55,146.51,2.6954]
[1718157402956,2.5248,146.55,146.53,0.17]
[1718157403155,2.5246,146.56,146.53,0.17]
[1718157403356,35.6448,146.59,146.53,0.17]
[1718157403671,2.5247,146.55,146.53,0.17]
[1718157404078,7.5747,146.54,146.53,0.17]
[1718157404274,2.5249,146.54,146.53,0.17]
[1718157408281,25.5498,146.54,146.48,16.3916]
[1718157408580,2.5252,146.52,146.48,18.9174]
[1718157408784,44.05,146.55,146.48,16.3916]
[1718157408978,44.05,146.55,146.5,2.5255]
[1718157408979,2.525,146.53,146.5,2.5255]
[1718157409159,2.5249,146.54,146.5,2.5255]
[1718157409361,2.5248,146.55,146.52,0.17]
[1718157409559,2.5249,146.54,146.52,0.51]
[1718157409785,2.5248,146.55,146.53,0.17]
[1718157409971,2.5248,146.55,146.54,0.17]
[1718157410290,2.5246,146.56,146.54,0.17]
[1718157410492,2.5245,146.57,146.54,0.34]
[1718157410664,2.5245,146.57,146.55,0.17]
[1718157410985,2.5241,146.59,146.56,0.17]
[1718157411282,4.91230983,146.61,146.59,2.5239]
[1718157411487,3.35655,146.61,146.59,0.17]
[1718157411658,3.35655,146.61,146.59,0.68]
[1718157411865,2.5238,146.6,146.59,0.68]
[1718157412767,2.5238,146.6,146.59,0.17]
[1718157412968,5.0481,146.59,146.55,0.17]
[1718157413177,5.0481,146.59,146.57,0.17]
[1718157413178,2.5242,146.58,146.57,0.17]
[1718157413381,2.5245,146.56,146.51,22.2649]
[1718157413578,2.5245,146.56,146.52,2.5251]
[1718157413773,44.05,146.58,146.51,15.8626]
[1718157414107,2.5251,146.53,146.51,15.8626]
[1718157414587,20.5,146.55,146.47,21.7169]
[1718157414792,2.5256,146.5,146.47,15.3146]
[1718157414996,2.5257,146.49,146.47,15.3146]
[1718157415205,2.5256,146.5,146.47,15.3146]
[1718157415362,28.0754,146.53,146.47,17.8406]
[1718157415363,2.5255,146.51,146.47,17.8406]
[1718157415571,25.5505,146.52,146.45,2.5263]
[1718157415876,2.5259,146.49,146.45,2.5263]
[1718157416472,2.5254,146.51,146.47,2.526]
[1718157416664,28.5992,146.56,146.49,2.5256]
[1718157416889,36.173,146.56,146.5,0.17]
[1718157417083,2.5255,146.51,146.49,0.68]
[1718157417392,2.5249,146.54,146.49,0.68]
[1718157417578,2.5253,146.52,146.49,0.68]
[1718157417981,2.5254,146.51,146.49,0.68]
[1718157418574,12.623,146.56,146.49,0.68]
[1718157418776,2.5249,146.54,146.49,3.2057]
[1718157418997,2.5251,146.53,146.49,3.2057]
[1718157420186,20.5,146.57,146.51,0.17]
[1718157420495,12.6221,146.57,146.5,2.5254]
[1718157420702,5.0488,146.57,146.51,3.2054]
[1718157421007,23.55,146.58,146.52,0.34]
[1718157421008,2.5248,146.55,146.52,0.34]
[1718157421178,49.31822033,146.6,146.54,0.17]
[1718157421517,49.31822033,146.6,146.54,0.68]
[1718157421518,2.5239,146.6,146.54,0.68]
[1718157421698,2.5239,146.6,146.57,0.17]
[1718157422006,2.5239,146.6,146.57,0.68]
[1718157422498,2.5241,146.59,146.57,0.68]
[1718157423482,2.5242,146.58,146.57,0.68]
[1718157424892,0.83275,146.61,146.57,6.9695]
[1718157425096,0.83275,146.61,146.59,0.17]
[1718157425294,0.83275,146.61,146.59,0.51]
[1718157425606,0.83275,146.61,146.6,0.17]
[1718157425787,3.35645,146.61,146.6,0.68]
[1718157425983,0.83275,146.61,146.6,0.68]
[1718157426377,3.35645,146.61,146.6,0.68]
[1718157426604,0.83275,146.61,146.6,0.68]
[1718157427010,0.83275,146.61,146.6,9.3926]
[1718157427904,0.83275,146.61,146.6,0.68]
[1718157429478,0.83275,146.61,146.6,3.2038]
[1718157429677,0.83275,146.61,146.6,0.68]
[1718157430408,0.83275,146.61,146.6,3.2038]
[1718157431109,0.83275,146.61,146.6,0.68]
[1718157431999,0.83275,146.61,146.58,16.4606]
[1718157432305,2.524,146.59,146.55,2.5247]
[1718157432486,2.5243,146.58,146.54,17.6899]
[1718157432686,2.5239,146.6,146.54,15.1651]
[1718157432890,2.5239,146.6,146.56,2.5244]
[1718157433197,3.35645,146.61,146.57,2.5243]
[1718157433602,3.35645,146.61,146.58,0.51]
[1718157433788,3.35645,146.61,146.59,0.17]
[1718157433989,2.5238,146.6,146.59,0.17]
[1718157435186,2.5238,146.6,146.59,0.34]
[1718157435391,2.524,146.59,146.58,0.34]
[1718157435691,2.524,146.59,146.58,0.17]
[1718157437103,2.524,146.59,146.58,0.51]
[1718157437483,2.5251,146.53,146.51,16.3775]
[1718157437720,22.7215,146.56,146.5,2.5255]
[1718157437721,2.5249,146.54,146.5,2.5255]
[1718157437887,2.525,146.53,146.49,8.988]
[1718157438088,5.0493,146.56,146.49,6.4624]
[1718157438387,28.0732,146.57,146.49,6.4624]
[1718157438388,20.5,146.57,146.49,6.4624]
[1718157438697,2.5244,146.57,146.53,2.525]
[1718157438911,10.09730116,146.6,146.49,6.4624]
[1718157439109,10.09730116,146.6,146.52,7.5757]
[1718157439303,13.45375116,146.61,146.57,2.5242]
[1718157439492,3.35645,146.61,146.58,0.68]
[1718157439816,2.524,146.59,146.58,0.68]
[1718157439999,2.5239,146.6,146.58,0.68]
[1718157440201,2.524,146.6,146.58,0.68]
[1718157441518,2.524,146.59,146.58,0.68]
[1718157442528,2.524,146.59,146.58,0.51]
[1718157443292,31.43222445,146.61,146.53,18.4159]
[1718157443514,31.43222445,146.61,146.5,12.6275]
[1718157443515,25.5482,146.59,146.55,0.17]
[1718157443699,42.20779462,146.59,146.55,0.17]
[1718157444217,2.5246,146.56,146.55,0.17]
[1718157444592,2.5246,146.56,146.55,0.34]
[1718157444794,2.5246,146.56,146.55,0.68]
[1718157445298,2.5244,146.57,146.55,0.68]
[1718157445600,46.15369462,146.58,146.49,15.0351]
[1718157445819,46.15369462,146.58,146.52,2.5252]
[1718157445820,12.62519462,146.57,146.52,2.5252]
[1718157446020,2.5245,146.56,146.5,5.0511]
[1718157446206,12.62519462,146.57,146.52,2.5251]
[1718157446600,12.62519462,146.57,146.53,2.525]
[1718157446806,12.62509462,146.58,146.54,0.17]